[Event "7th Cattolica Open-B 2020"]
[Site "Cattolica"]
[Date "2020.09.05"]
[Round "6.10"]
[White "Maselli, David"]
[Black "Pellegrini, Ennio Paolo"]
[Result "*"]
[ECO "E73"]
[WhiteElo "1649"]
[BlackElo "1733"]
[Annotator "NA RC"]
[PlyCount "45"]
[EventDate "2020.08.31"]
[EventType "swiss"]
[EventCountry "ITA"]
[SourceTitle "playchess.com"]
[Source "ChessBase"]
[SourceQuality "1"]
[TimeControl "5400+30"]

1. d4 {[%emt 0:00:00]} Nf6 {[%emt 0:08:56]} 2. c4 {[%emt 0:00:02]} g6 {[%emt 0:00:11]} 3. Nc3 {[%emt 0:00:26]} Bg7 {[%emt 0:00:11]} 4. e4 {[%emt 0:00:29]} d6 {[%emt 1:22:42]} 5. Be2 {[%emt 0:00:36]} O-O {[%emt 0:00:15]} 6. Be3 {[%emt 0:00:50]} Nc6 {[%emt 0:02:49]} 7. d5 {[%emt 0:06:42]} Ne5 {[%emt 1:21:02]} 8. h3 {[%emt 0:00:29]} c5 {[%emt 0:00:00]} 9. f4 {[%emt 0:03:41]} Ned7 {[%emt 0:01:00]} 10. Nf3 {[%emt 0:02:32]} Qa5 {[%emt 0:00:30]} 11. Nd2 {[%emt 1:19:43]} a6 {[%emt 0:00:00]} 12. O-O {[%emt 0:02:20]} Rb8 {[%emt 0:00:00]} 13. a4 {[%emt 0:02:00]} e6 {[%emt 0:00:00]} 14. Nb3 {[%emt 0:04:27]} Qc7 {[%emt 0:00:00]} 15. dxe6 {[%emt 0:00:37]} fxe6 {[%emt 0:00:00]} 16. f5 {[%emt 0:06:12]} Ne5 {[%emt 0:00:00]} 17. fxg6 {[%emt 0:02:05]} Nxg6 {[%emt 0:00:00]} 18. Qe1 {[%emt 0:01:40]} Bd7 {[%emt 0:00:00]} 19. Qg3 {[%emt 0:57:05]} Bc6 {[%emt 0:00:00]} 20. Nxc5 {[%emt 0:01:29]} Qe7 {[%emt 0:00:00]} 21. Nd3 {[%emt 0:05:35]} Nxe4 22. Nxe4 {[%emt 0:00:46]} Bxe4 {[%emt 0:00:00]} 23. Rad1 {[%emt 0:50:54]} *

[Event "7th Cattolica Open-B 2020"]
[Site "Cattolica"]
[Date "2020.09.06"]
[Round "7.1"]
[White "Mammi, Samuele"]
[Black "Marani, Luca"]
[Result "1-0"]
[ECO "A29"]
[WhiteElo "1847"]
[BlackElo "1736"]
[Annotator "NA"]
[PlyCount "85"]
[EventDate "2020.08.31"]
[EventType "swiss"]
[EventCountry "ITA"]
[SourceTitle "playchess.com"]
[Source "ChessBase"]
[SourceQuality "1"]
[TimeControl "5400+30"]

1. c4 {[%emt 0:00:35]} e5 {[%emt 0:00:00]} 2. Nc3 {[%emt 0:01:42]} Nf6 {[%emt 0:00:00]} 3. g3 {[%emt 1:29:13]} d5 4. cxd5 {[%emt 0:00:00]} Nxd5 {[%emt 0:01:31]} 5. Bg2 {[%emt 0:00:00]} Be6 {[%emt 0:00:03]} 6. Nf3 {[%emt 0:00:00]} Nc6 {[%emt 0:00:02]} 7. O-O {[%emt 0:00:00]} Be7 {[%emt 0:00:03]} 8. d4 {[%emt 0:00:00]} Nxc3 {[%emt 0:00:11]} 9. bxc3 {[%emt 0:03:00]} e4 {[%emt 1:32:40]} 10. Ne5 {[%emt 0:00:00]} f5 {[%emt 0:00:00]} 11. Qa4 {[%emt 0:00:00]} Qd6 12. Bf4 {[%emt 0:00:00]} g5 {[%emt 0:00:00]} 13. Nf7 {[%emt 0:00:00]} Qd5 {[%emt 0:00:00]} 14. Nxg5 {[%emt 0:00:00]} Bd7 {[%emt 0:00:00]} 15. Qb3 {[%emt 0:00:00]} Qxb3 {[%emt 0:00:00]} 16. axb3 {[%emt 0:03:30]} a6 {[%emt 0:00:00]} 17. Nh3 {[%emt 0:00:00]} O-O-O {[%emt 0:00:00]} 18. d5 {[%emt 0:00:00]} Nb8 {[%emt 0:00:00]} 19. Be5 {[%emt 0:00:00]} Rhg8 {[%emt 0:00:00]} 20. Nf4 {[%emt 0:00:00]} Be8 {[%emt 0:00:00]} 21. Bh3 {[%emt 0:00:00]} Bg6 {[%emt 0:00:00]} 22. c4 {[%emt 0:00:00]} Nd7 {[%emt 0:00:00]} 23. Bc3 {[%emt 0:00:00]} Bd6 {[%emt 0:00:00]} 24. Ne6 {[%emt 0:00:00]} Rde8 {[%emt 0:00:00]} 25. f3 {[%emt 0:00:00]} Nc5 {[%emt 0:00:00]} 26. Ng7 {[%emt 0:00:00]} Ref8 {[%emt 0:00:00]} 27. b4 {[%emt 0:00:00]} Nd7 {[%emt 0:00:00]} 28. Ne6 {[%emt 0:00:00]} Rf7 {[%emt 0:00:00]} 29. fxe4 {[%emt 0:00:00]} fxe4 {[%emt 0:00:00]} 30. Rxf7 {[%emt 0:00:00]} Bxf7 {[%emt 0:00:00]} 31. Rf1 {[%emt 0:00:00]} Bg6 {[%emt 0:00:00]} 32. c5 {[%emt 0:00:00]} Be7 {[%emt 0:00:00]} 33. Nd4 {[%emt 0:00:00]} Kd8 {[%emt 0:00:00]} 34. c6 {[%emt 0:00:00]} bxc6 {[%emt 0:00:00]} 35. dxc6 {[%emt 0:00:00]} Nb8 {[%emt 0:00:00]} 36. Ne6+ {[%emt 0:00:00]} Kc8 {[%emt 0:00:00]} 37. Nc5+ {[%emt 0:00:00]} Kd8 {[%emt 0:00:00]} 38. Rd1+ {[%emt 0:00:00]} Bd6 {[%emt 0:00:00]} 39. Bf6+ {[%emt 0:00:00]} Ke8 {[%emt 0:00:00]} 40. Rxd6 {[%emt 0:00:00]} cxd6 {[%emt 0:00:00]} 41. c7 {[%emt 0:12:30]} Kf7 {[%emt 0:01:07]} 42. Be6+ {[%emt 0:00:00]} Kxf6 {[%emt 0:01:06]} 43. Bxg8 {[%emt 0:00:00]} 1-0

[Event "7th Cattolica Open-B 2020"]
[Site "Cattolica"]
[Date "2020.09.06"]
[Round "7.2"]
[White "Ismayilov, Ulvi"]
[Black "D`Agostino, Maurizio"]
[Result "1/2-1/2"]
[ECO "C10"]
[WhiteElo "1713"]
[BlackElo "1893"]
[Annotator "NA"]
[PlyCount "115"]
[EventDate "2020.08.31"]
[EventType "swiss"]
[EventCountry "ITA"]
[SourceTitle "playchess.com"]
[Source "ChessBase"]
[SourceQuality "1"]
[TimeControl "5400+30"]

1. d4 {[%emt 0:00:00]} e6 {[%emt 0:00:00]} 2. e4 {[%emt 0:00:00]} d5 {[%emt 0:00:00]} 3. Nc3 {[%emt 0:00:00]} Nc6 {[%emt 0:00:01]} 4. Nf3 {[%emt 0:01:14]} Nf6 {[%emt 0:00:06]} 5. e5 {[%emt 0:02:05]} Ne4 {[%emt 0:00:12]} 6. Bd3 {[%emt 0:02:44]} Bb4 {[%emt 0:00:07]} 7. Bd2 {[%emt 0:00:45]} Nxd2 {[%emt 0:00:14]} 8. Qxd2 {[%emt 0:00:16]} Bd7 {[%emt 0:01:26]} 9. a3 {[%emt 0:00:21] C10: French with 3 Nc3: Unusual Black 3rd moves and 3...dxe4.} Ba5 {[%emt 0:07:38]} 10. O-O {[%emt 0:12:58]} Qe7 {[%emt 0:00:17] [#]} 11. Qf4 $146 {[%emt 0:05:41]} ({Predecessor:} 11. b4 Bb6 12. Ne2 O-O 13. c3 a6 14. Ng3 f6 15. exf6 Rxf6 16. Rae1 Raf8 17. Ne5 Nxe5 18. Rxe5 {0-1 (24) Eibl,M (2113)-Maiorov,D (1988) playchess.com INT 2012}) 11... h6 {[%emt 0:14:26]} 12. b4 {[%emt 0:09:08]} g5 {[%emt 0:04:03]} 13. Qg3 {[%emt 0:08:06]} Bb6 {[%emt 0:01:26]} 14. Ne2 {[%emt 0:00:11]} O-O-O {[%emt 0:00:54]} 15. c4 {[%emt 0:11:26]} dxc4 {[%emt 0:00:33]} 16. Bxc4 {[%emt 0:00:16]} Rdg8 {[%emt 0:00:08]} 17. Rfd1 {[%emt 0:09:31]} h5 {[%emt 0:00:43]} 18. Ra2 {[%emt 0:08:33]} g4 {[%emt 0:17:02]} 19. Ne1 {[%emt 0:02:39]} h4 {[%emt 0:05:50]} 20. Qc3 {[%emt 0:00:16]} Qg5 {[%emt 0:01:07]} 21. Qe3 {[%emt 0:07:16]} Qg7 {[%emt 0:03:21]} 22. Nd3 {[%emt 0:01:25]} Ne7 {[%emt 0:02:20]} 23. Nc5 {[%emt 0:00:29]} g3 {[%emt 0:09:12]} 24. fxg3 {[%emt 0:01:11]} Nf5 {[%emt 0:03:27]} 25. Qe4 {[%emt 0:01:50]} Bxc5 {[%emt 0:09:03]} 26. bxc5 {[%emt 0:00:56]} hxg3 {[%emt 0:01:03]} 27. h3 {[%emt 0:00:49]} Rh4 {[%emt 0:02:42]} 28. Qf3 {[%emt 0:02:25]} Qg5 {[%emt 0:02:05]} 29. Rd3 {[%emt 0:02:51]} Bc6 {[%emt 0:05:03]} 30. d5 {[%emt 0:00:49]} Rxc4 {[%emt 0:02:24]} 31. dxc6 {[%emt 0:00:07]} bxc6 $19 {[%emt 0:01:30]} 32. Rad2 {[%emt 0:02:59]} Qe7 {[%emt 0:00:16]} 33. Qxc6 {[%emt 0:02:05]} Qxc5+ {[%emt 0:00:23]} 34. Qxc5 {[%emt 0:00:14]} Rxc5 {[%emt 0:00:02]} 35. Rc3 {[%emt 0:02:17]} Rxc3 {[%emt 0:01:47]} 36. Nxc3 {[%emt 0:00:01]} Ne3 {[%emt 0:01:53]} 37. Ne4 {[%emt 0:01:15]} Nc4 {[%emt 0:01:26]} 38. Rd3 {[%emt 0:00:07]} Nxe5 {[%emt 0:00:17]} 39. Rxg3 {[%emt 0:00:04]} Rxg3 {[%emt 0:00:19]} 40. Nxg3 {[%emt 0:00:00]} Nc4 {[%emt 0:00:18]} 41. h4 {[%emt 0:00:39]} Kd8 {[%emt 0:00:25]} 42. a4 {[%emt 0:00:30]} Ke7 {[%emt 0:00:19]} 43. Kf2 {[%emt 0:00:39]} a5 {[%emt 0:00:11]} 44. Ne4 {[%emt 0:00:28]} Nb6 {[%emt 0:00:23]} 45. Nc5 {[%emt 0:01:02]} f5 {[%emt 0:00:25]} 46. Kf3 {[%emt 0:02:17]} Kf6 {[%emt 0:00:42]} 47. g4 {[%emt 0:00:33]} fxg4+ {[%emt 0:00:34]} 48. Kxg4 {[%emt 0:00:01]} e5 {[%emt 0:01:31]} 49. h5 {[%emt 0:00:23]} c6 {[%emt 0:01:17]} 50. Ne4+ {[%emt 0:01:10]} Kg7 {[%emt 0:00:28]} 51. Nc5 {[%emt 0:01:20]} Kh6 {[%emt 0:01:31]} 52. Kf5 {[%emt 0:00:51]} Nc4 {[%emt 0:00:20]} 53. Kg4 {[%emt 0:00:29]} Nd6 {[%emt 0:03:20]} 54. Nd7 {[%emt 0:00:47]} Nc4 {[%emt 0:00:00]} 55. Kf5 {[%emt 0:00:15]} Kxh5 {[%emt 0:00:15]} 56. Nxe5 {[%emt 0:00:05]} Nb6 {[%emt 0:00:31]} 57. Nxc6 {[%emt 0:00:06]} Nxa4 {[%emt 0:00:04]} 58. Nxa5 {[%emt 0:00:02]} 1/2-1/2

[Event "7th Cattolica Open-B 2020"]
[Site "Cattolica"]
[Date "2020.09.06"]
[Round "7.3"]
[White "Saviane, Giorgio"]
[Black "Vitaliani, Marco"]
[Result "0-1"]
[ECO "C02"]
[WhiteElo "1643"]
[BlackElo "1911"]
[Annotator "ChessBase"]
[PlyCount "96"]
[EventDate "2020.08.31"]
[EventType "swiss"]
[EventCountry "ITA"]
[SourceTitle "playchess.com"]
[Source "ChessBase"]
[SourceQuality "1"]
[TimeControl "5400+30"]

1. e4 {[%emt 0:01:15]} e6 {[%emt 0:00:00]} 2. d4 {[%emt 0:00:30]} d5 {[%emt 0:00:05]} 3. e5 {[%emt 0:00:30]} c5 {[%emt 0:00:30]} 4. c3 {[%emt 0:00:30]} Nc6 {[%emt 0:00:30]} 5. Nf3 {[%emt 0:00:30]} Qb6 {[%emt 0:00:30]} 6. a3 {[%emt 0:00:30]} Nh6 {[%emt 0:00:30]} 7. Bd3 cxd4 {[%emt 0:04:16]} 8. cxd4 {[%emt 0:00:51]} Nf5 {[%emt 0:00:21]} 9. Bxf5 {[%emt 0:00:25]} exf5 {[%emt 0:00:31]} 10. Nc3 {[%emt 0:00:50]} Be6 {[%emt 0:00:42]} 11. O-O {[%emt 0:00:17]} h6 {[%emt 0:03:41]} 12. b4 {[%emt 0:03:23]} Be7 {[%emt 0:00:56]} 13. Be3 {[%emt 0:01:55]} O-O {[%emt 0:01:06]} 14. Qd3 {[%emt 0:05:45]} Rfc8 {[%emt 0:03:05]} 15. Rfc1 {[%emt 0:04:27]} Qd8 {[%emt 0:09:23]} 16. Nd2 {[%emt 0:07:55]} a5 {[%emt 0:13:42]} 17. b5 {[%emt 0:04:04]} Nb8 {[%emt 0:00:46]} 18. Na4 {[%emt 0:13:36]} Nd7 {[%emt 0:00:49]} 19. Nb3 {[%emt 0:12:47]} Rxc1+ {[%emt 0:15:25]} 20. Nxc1 {[%emt 0:01:32]} Rc8 {[%emt 0:00:47]} 21. Ne2 {[%emt 0:00:44]} Nb6 {[%emt 0:03:12]} 22. Nc5 {[%emt 0:04:21]} Rc7 {[%emt 0:01:34]} 23. Nf4 {[%emt 0:01:57]} Qc8 {[%emt 0:00:48]} 24. Qe2 {[%emt 0:12:10]} Nc4 {[%emt 0:14:33]} 25. Ncxe6 {[%emt 0:03:12]} fxe6 {[%emt 0:00:09]} 26. Qh5 {[%emt 0:00:07]} Bxa3 {[%emt 0:05:21]} 27. Qg6 {[%emt 0:00:37]} Nxe3 {[%emt 0:11:39]} 28. Qxe6+ {[%emt 0:01:30]} Qxe6 {[%emt 0:00:09]} 29. Nxe6 {[%emt 0:00:03]} Rc1+ {[%emt 0:00:32]} 30. Rxc1 {[%emt 0:00:04]} Bxc1 {[%emt 0:00:06]} 31. fxe3 {[%emt 0:00:03]} a4 {[%emt 0:01:21]} 32. Nc5 {[%emt 0:00:35]} a3 {[%emt 0:00:42]} 33. Kf2 {[%emt 0:01:00]} a2 {[%emt 0:00:09]} 34. Nb3 {[%emt 0:00:08]} Bb2 {[%emt 0:00:03]} 35. Kf3 {[%emt 0:00:10]} Kf7 {[%emt 0:04:09]} 36. g4 {[%emt 0:01:01]} fxg4+ {[%emt 0:00:13]} 37. Kxg4 {[%emt 0:00:05]} a1=Q {[%emt 0:00:09]} 38. Nxa1 {[%emt 0:00:03]} Bxa1 {[%emt 0:00:08]} 39. Kf5 {[%emt 0:00:07]} g6+ {[%emt 0:00:07]} 40. Kf4 {[%emt 0:00:03]} Ke6 {[%emt 0:00:34]} 41. h4 {[%emt 0:00:16]} Bb2 {[%emt 0:00:21]} 42. Kg4 {[%emt 0:00:26]} Bc1 {[%emt 0:00:29]} 43. Kf4 {[%emt 0:00:07]} g5+ {[%emt 0:00:30]} 44. hxg5 {[%emt 0:00:58]} hxg5+ {[%emt 0:00:06]} 45. Kf3 {[%emt 0:00:03]} Kf5 {[%emt 0:00:14]} 46. Kf2 {[%emt 0:00:21]} Ke4 {[%emt 0:00:33]} 47. Ke2 {[%emt 0:00:24]} g4 {[%emt 0:00:10]} 48. Kf2 {[%emt 0:00:07]} Bxe3+ {[%emt 0:08:24]} 0-1

[Event "7th Cattolica Open-B 2020"]
[Site "Cattolica"]
[Date "2020.09.06"]
[Round "7.4"]
[White "Cote, Frederic"]
[Black "Frescura, Davide"]
[Result "0-1"]
[ECO "B53"]
[WhiteElo "1917"]
[BlackElo "1916"]
[Annotator "ChessBase"]
[PlyCount "76"]
[EventDate "2020.08.31"]
[EventType "swiss"]
[EventCountry "ITA"]
[SourceTitle "playchess.com"]
[Source "ChessBase"]
[SourceQuality "1"]
[TimeControl "5400+30"]

1. Nf3 {[%emt 0:00:00]} c5 {[%emt 0:00:00]} 2. e4 {[%emt 0:00:00]} d6 {[%emt 0:00:00]} 3. d4 {[%emt 0:00:00]} cxd4 {[%emt 0:00:00]} 4. Qxd4 {[%emt 0:00:03]} Nc6 {[%emt 0:00:03]} 5. Bb5 {[%emt 0:00:10]} Bd7 {[%emt 0:01:41]} 6. Bxc6 {[%emt 0:00:11]} Bxc6 {[%emt 0:02:08]} 7. c4 {[%emt 0:01:05]} Nf6 {[%emt 0:02:07]} 8. Nc3 {[%emt 0:00:36]} g6 {[%emt 0:01:17]} 9. O-O {[%emt 0:04:45]} Bg7 {[%emt 0:01:27]} 10. h3 {[%emt 0:02:54]} O-O {[%emt 0:01:05]} 11. Qd3 {[%emt 0:00:11]} Nd7 {[%emt 0:07:29]} 12. Re1 {[%emt 0:07:40]} Nc5 {[%emt 0:06:15]} 13. Qc2 {[%emt 0:02:35]} Bxc3 {[%emt 0:06:04]} 14. Qxc3 {[%emt 0:01:43]} Nxe4 {[%emt 0:02:03]} 15. Rxe4 {[%emt 0:01:19]} Bxe4 {[%emt 0:00:49]} 16. Bh6 {[%emt 0:00:14]} f6 {[%emt 0:01:31]} 17. Ng5 {[%emt 0:00:20]} Bf5 {[%emt 0:03:44]} 18. g4 {[%emt 0:01:57]} Bd7 {[%emt 0:03:01]} 19. Re1 {[%emt 0:04:17]} Re8 {[%emt 0:07:51]} 20. Qd4 {[%emt 0:00:52]} Qa5 {[%emt 0:10:39]} 21. Re3 {[%emt 0:08:49]} Qc5 {[%emt 0:05:14]} 22. Qc3 {[%emt 0:09:23]} d5 {[%emt 0:06:41]} 23. Rd3 {[%emt 0:00:20]} Qxc4 {[%emt 0:05:43]} 24. Qxc4 {[%emt 0:00:15]} dxc4 {[%emt 0:00:07]} 25. Rxd7 {[%emt 0:00:10]} fxg5 {[%emt 0:00:20]} 26. Rxb7 {[%emt 0:00:26]} Kf7 {[%emt 0:04:40]} 27. Bxg5 {[%emt 0:00:27]} Rab8 {[%emt 0:01:12]} 28. Rxa7 {[%emt 0:02:59]} Rxb2 {[%emt 0:00:40]} 29. Rc7 {[%emt 0:00:21]} Rc2 {[%emt 0:01:48]} 30. a4 {[%emt 0:00:13]} Ra8 {[%emt 0:19:21]} 31. Rxe7+ {[%emt 0:00:28]} Kg8 {[%emt 0:00:00]} 32. Bf6 {[%emt 0:05:15]} Rc8 {[%emt 0:00:00]} 33. Rg7+ {[%emt 0:00:20]} Kf8 {[%emt 0:00:00]} 34. Rxh7 {[%emt 0:00:30]} Rc6 {[%emt 0:00:00]} 35. Bg5 {[%emt 0:02:34]} c3 {[%emt 0:00:00]} 36. h4 {[%emt 0:05:38]} Rc4 {[%emt 0:00:00]} 37. f3 {[%emt 0:00:45]} Rxa4 {[%emt 0:00:00]} 38. Rh8+ {[%emt 0:00:33]} Kg7 {[%emt 0:00:00]} 0-1

[Event "7th Cattolica Open-B 2020"]
[Site "Cattolica"]
[Date "2020.09.06"]
[Round "7.5"]
[White "Rubinshtein, Kamilla"]
[Black "Antoniacci, Riccardo"]
[Result "0-1"]
[ECO "B22"]
[WhiteElo "1767"]
[BlackElo "1649"]
[Annotator "NA"]
[PlyCount "116"]
[EventDate "2020.08.31"]
[EventType "swiss"]
[EventCountry "ITA"]
[SourceTitle "playchess.com"]
[Source "ChessBase"]
[SourceQuality "1"]
[TimeControl "5400+30"]

1. e4 {[%emt 0:00:00]} c5 {[%emt 0:00:00]} 2. c3 {[%emt 0:00:00]} d5 {[%emt 0:02:57]} 3. exd5 {[%emt 0:00:07]} Qxd5 {[%emt 0:00:09]} 4. d4 {[%emt 0:00:12]} Nc6 {[%emt 0:02:02]} 5. Nf3 {[%emt 0:00:16]} Bg4 {[%emt 0:01:27]} 6. Be2 {[%emt 0:00:39]} e6 {[%emt 0:02:32]} 7. h3 {[%emt 0:03:37]} Bh5 {[%emt 0:01:05]} 8. O-O {[%emt 0:00:47]} Nf6 {[%emt 0:01:55]} 9. Be3 {[%emt 0:02:30]} Rd8 {[%emt 0:04:35]} 10. Na3 {[%emt 0:08:54]} cxd4 {[%emt 0:01:52]} 11. Nb5 {[%emt 0:02:21]} Qd7 {[%emt 0:00:12]} 12. Nbxd4 {[%emt 0:01:05]} Be7 {[%emt 0:03:11]} 13. Nxc6 {[%emt 0:08:36]} Qxc6 {[%emt 0:00:41]} 14. Qb3 {[%emt 0:03:26]} a6 {[%emt 0:00:15]} 15. Ne5 {[%emt 0:10:27]} Qe4 {[%emt 0:00:34]} 16. Bxh5 {[%emt 0:02:41]} Nxh5 {[%emt 0:02:22]} 17. Nf3 {[%emt 0:00:59]} O-O {[%emt 0:01:54]} 18. Rfe1 {[%emt 0:01:29]} Qc6 {[%emt 0:01:56]} 19. a4 {[%emt 0:01:13]} Rd7 {[%emt 0:01:45]} 20. a5 {[%emt 0:05:59]} Bf6 {[%emt 0:08:05]} 21. Qb4 {[%emt 0:07:14]} g6 {[%emt 0:02:00]} 22. Bb6 {[%emt 0:01:17]} Re8 {[%emt 0:02:39]} 23. Rad1 {[%emt 0:04:09]} Rxd1 {[%emt 0:01:07]} 24. Rxd1 {[%emt 0:00:06]} e5 {[%emt 0:00:12]} 25. Qd6 {[%emt 0:05:33]} Qb5 {[%emt 0:07:38]} 26. Qd7 {[%emt 0:02:07]} Qxd7 {[%emt 0:04:39]} 27. Rxd7 {[%emt 0:00:10]} e4 {[%emt 0:01:42]} 28. Nd2 {[%emt 0:06:18]} Bg5 {[%emt 0:01:13]} 29. Nc4 {[%emt 0:04:49]} Re7 {[%emt 0:00:25]} 30. Rc7 {[%emt 0:02:39]} Rxc7 {[%emt 0:09:22]} 31. Bxc7 {[%emt 0:00:05]} Ng7 {[%emt 0:01:04]} 32. Bd6 {[%emt 0:04:24]} Ne8 {[%emt 0:00:53]} 33. Bc5 {[%emt 0:00:28]} f5 {[%emt 0:01:46]} 34. Kf1 {[%emt 0:01:53]} Kf7 {[%emt 0:00:19]} 35. Ke2 {[%emt 0:00:37]} Ke6 {[%emt 0:00:31]} 36. Nb6 {[%emt 0:01:09]} Bd8 {[%emt 0:00:38]} 37. c4 {[%emt 0:01:30]} Bxb6 {[%emt 0:00:19]} 38. Bxb6 {[%emt 0:00:11]} f4 {[%emt 0:02:11]} 39. Bd4 {[%emt 0:02:26]} h5 {[%emt 0:00:42]} 40. Kd2 {[%emt 0:01:59]} g5 {[%emt 0:00:56]} 41. Kc3 {[%emt 0:01:38]} g4 {[%emt 0:00:24]} 42. hxg4 {[%emt 0:00:16]} hxg4 {[%emt 0:00:09]} 43. b4 {[%emt 0:00:45]} Nd6 {[%emt 0:00:52]} 44. Bc5 {[%emt 0:01:11]} Nf5 {[%emt 0:01:12]} 45. b5 {[%emt 0:01:46]} g3 {[%emt 0:30:08]} 46. fxg3 {[%emt 0:01:18]} Nxg3 {[%emt 0:00:00]} 47. Kd2 {[%emt 0:00:33]} Nf5 {[%emt 0:01:00]} 48. Ke2 {[%emt 0:00:43]} Ke5 {[%emt 0:00:00]} 49. bxa6 {[%emt 0:00:46]} bxa6 {[%emt 0:00:00]} 50. Bb6 {[%emt 0:01:03]} Nh4 {[%emt 0:00:00]} 51. Kf2 {[%emt 0:00:25]} e3+ {[%emt 0:00:00]} 52. Kf1 {[%emt 0:00:38]} Ke4 {[%emt 0:00:00]} 53. c5 {[%emt 0:00:31]} Kd3 {[%emt 0:00:00]} 54. c6 {[%emt 0:00:32]} e2+ {[%emt 0:00:00]} 55. Kf2 {[%emt 0:00:27]} Nxg2 {[%emt 0:00:00]} 56. Kxg2 {[%emt 0:00:35]} e1=Q {[%emt 0:00:00]} 57. c7 {[%emt 0:00:27]} Qg3+ {[%emt 0:00:00]} 58. Kh1 {[%emt 0:00:17]} f3 {[%emt 0:00:00]} 0-1

[Event "7th Cattolica Open-B 2020"]
[Site "Cattolica"]
[Date "2020.09.06"]
[Round "7.6"]
[White "Beliman, Alexandro"]
[Black "Mammi, Ottavio"]
[Result "1-0"]
[ECO "B12"]
[WhiteElo "1732"]
[BlackElo "1633"]
[Annotator "NA"]
[PlyCount "97"]
[EventDate "2020.08.31"]
[EventType "swiss"]
[EventCountry "ITA"]
[SourceTitle "playchess.com"]
[Source "ChessBase"]
[SourceQuality "1"]
[TimeControl "5400+30"]

1. e4 {[%emt 0:00:00]} c6 {[%emt 0:00:39]} 2. d4 {[%emt 0:00:00]} d5 {[%emt 0:00:14]} 3. e5 {[%emt 0:00:00]} Bf5 {[%emt 0:00:19]} 4. Nf3 {[%emt 0:00:00]} e6 {[%emt 0:00:07]} 5. Be2 {[%emt 0:00:00]} c5 {[%emt 0:00:09]} 6. c3 {[%emt 0:00:25]} Nc6 {[%emt 1:31:32]} 7. a3 {[%emt 0:02:41]} Rc8 {[%emt 0:00:00]} 8. Be3 {[%emt 0:02:47]} b6 {[%emt 0:00:00]} 9. Nbd2 {[%emt 0:00:39]} Bg4 {[%emt 0:00:00]} 10. O-O {[%emt 0:02:29]} Nh6 {[%emt 0:00:00]} 11. h3 {[%emt 0:00:21]} Bh5 {[%emt 0:00:00]} 12. Re1 {[%emt 0:04:14]} Bg6 {[%emt 0:00:00]} 13. Nf1 {[%emt 0:02:43]} Be7 {[%emt 0:00:00]} 14. Ng3 {[%emt 0:04:05]} Nf5 {[%emt 0:04:00]} 15. Nxf5 {[%emt 0:01:14]} Bxf5 {[%emt 0:00:00]} 16. Qd2 {[%emt 0:00:57]} h6 {[%emt 0:00:00]} 17. Bd3 {[%emt 0:02:20]} g5 {[%emt 0:00:00]} 18. Nh2 {[%emt 0:03:32]} Rg8 {[%emt 0:00:00]} 19. Kf1 {[%emt 0:06:14]} h5 {[%emt 0:00:00]} 20. Ke2 {[%emt 0:10:20]} c4 {[%emt 0:00:00]} 21. Bxf5 {[%emt 0:06:19]} exf5 {[%emt 0:00:00]} 22. g3 {[%emt 0:02:09]} b5 {[%emt 0:00:00]} 23. Qc2 {[%emt 0:04:28]} Qd7 {[%emt 0:00:00]} 24. f4 {[%emt 0:02:17]} h4 {[%emt 0:00:00]} 25. Rg1 {[%emt 0:02:25]} f6 {[%emt 0:00:00]} 26. gxh4 {[%emt 0:03:16]} g4 {[%emt 0:00:00]} 27. hxg4 {[%emt 0:00:12]} fxg4 {[%emt 0:00:00]} 28. Qh7 {[%emt 0:00:04]} Kf8 {[%emt 0:00:00]} 29. f5 {[%emt 0:02:37]} Ke8 {[%emt 0:00:00]} 30. Qxg8+ {[%emt 0:00:15]} Bf8 {[%emt 0:00:00]} 31. e6 {[%emt 0:01:00]} Qd6 {[%emt 0:00:00]} 32. Qf7+ {[%emt 0:01:16]} Kd8 {[%emt 0:00:00]} 33. Qd7+ {[%emt 0:00:07]} Qxd7 {[%emt 0:00:00]} 34. exd7 {[%emt 0:00:04]} Kxd7 {[%emt 0:00:00]} 35. Nxg4 {[%emt 0:00:12]} Be7 {[%emt 0:10:30]} 36. h5 {[%emt 0:00:19]} Rh8 {[%emt 0:00:00]} 37. h6 {[%emt 0:00:29]} Bf8 {[%emt 0:01:00]} 38. Nxf6+ {[%emt 0:00:13]} Kd6 {[%emt 0:00:00]} 39. Bf4+ {[%emt 0:01:13]} Ke7 {[%emt 0:00:00]} 40. Nxd5+ {[%emt 0:36:04]} Kf7 {[%emt 0:00:00]} 41. Rg6 {[%emt 0:00:00]} Ne7 {[%emt 0:00:00]} 42. Nxe7 {[%emt 0:00:00]} Bxe7 {[%emt 0:00:00]} 43. Be5 {[%emt 0:00:00]} Rh7 {[%emt 0:00:00]} 44. Rag1 {[%emt 0:00:00]} Bf6 {[%emt 0:00:00]} 45. Rxf6+ {[%emt 0:00:00]} Ke7 {[%emt 0:04:00]} 46. Rg7+ {[%emt 0:00:00]} Rxg7 {[%emt 0:00:00]} 47. hxg7 {[%emt 0:00:00]} Kd7 {[%emt 0:00:00]} 48. g8=Q {[%emt 0:00:00]} Ke7 {[%emt 0:00:00]} 49. Rf7# {[%emt 0:00:00]} 1-0

[Event "7th Cattolica Open-B 2020"]
[Site "Cattolica"]
[Date "2020.09.06"]
[Round "7.7"]
[White "Tagliaferri, Valerio"]
[Black "Bianco, Paolo"]
[Result "1-0"]
[ECO "D02"]
[WhiteElo "1777"]
[BlackElo "1476"]
[Annotator "NA"]
[PlyCount "47"]
[EventDate "2020.08.31"]
[EventType "swiss"]
[EventCountry "ITA"]
[SourceTitle "playchess.com"]
[Source "ChessBase"]
[SourceQuality "1"]
[TimeControl "5400+30"]

1. d4 {[%emt 0:01:38]} Nf6 {[%emt 0:00:00]} 2. Nf3 {[%emt 0:00:15]} e6 {[%emt 0:00:00]} 3. Bf4 {[%emt 0:00:19]} c5 {[%emt 0:02:26]} 4. e3 {[%emt 0:00:22]} Nc6 {[%emt 0:01:16]} 5. c3 {[%emt 0:00:21]} d5 {[%emt 0:00:15]} 6. Nbd2 {[%emt 0:00:48]} Bd6 {[%emt 0:00:23]} 7. Ne5 {[%emt 0:01:01]} O-O {[%emt 0:02:37]} 8. Bd3 {[%emt 0:00:47]} Qe7 {[%emt 0:02:50]} 9. h3 {[%emt 0:01:05]} Nd7 {[%emt 0:05:32]} 10. Ndf3 {[%emt 0:05:41]} f6 {[%emt 0:11:26]} 11. Nxc6 {[%emt 0:00:36]} bxc6 {[%emt 0:00:10]} 12. Bxd6 {[%emt 0:00:35]} Qxd6 {[%emt 0:00:01]} 13. Qc2 {[%emt 0:05:36]} g6 {[%emt 0:17:36]} 14. Rc1 {[%emt 0:28:43]} e5 {[%emt 0:15:29]} 15. Bxg6 {[%emt 0:14:45]} hxg6 {[%emt 0:13:37]} 16. Qxg6+ {[%emt 0:00:07]} Kh8 {[%emt 0:00:16]} 17. Nh4 {[%emt 0:06:58]} Nb6 {[%emt 0:16:17]} 18. dxc5 {[%emt 0:10:43]} Qxc5 {[%emt 0:02:09]} 19. g4 {[%emt 0:01:51]} Qc4 {[%emt 0:05:49]} 20. Rg1 {[%emt 0:02:34]} Rb8 {[%emt 0:01:12]} 21. Nf5 {[%emt 0:00:25]} Rb7 {[%emt 0:00:35]} 22. Qh6+ {[%emt 0:03:53]} Kg8 {[%emt 0:00:01]} 23. g5 {[%emt 0:00:30]} Rh7 {[%emt 0:00:30]} 24. gxf6+ {[%emt 0:00:30]} 1-0